[Event "5th Vera Menchik Memorial 2022"]
[Site "Prag"]
[Date "2022.06.05"]
[Round "3.15"]
[White "Slanec, Jan"]
[Black "Dubansky, Bohuslav"]
[Result "1-0"]
[ECO "C13"]
[WhiteElo "1957"]
[BlackElo "2223"]
[Annotator "TA"]
[PlyCount "137"]
[EventDate "2022.06.05"]
[EventType "tourn"]
[EventCountry "CZE"]
[SourceTitle "playchess.com"]
[Source "ChessBase"]
[SourceQuality "1"]
[TimeControl "720+3"]

{[%evp 12,137,8,-12,45,21,14,25,16,6,25,-20,35,41,46,44,46,46,54,37,68,36,60,33,33,-27,-18,-51,33,18,42,34,35,21,29,0,0,-3,27,-2,0,-30,-18,-25,-15,-28,-35,-62,-51,-55,-48,-67,-33,-154,-125,-171,-163,-177,-154,-162,-82,-85,-75,-71,19,17,14,22,21,17,386,373,376,369,389,381,382,358,364,233,234,237,237,234,229,222,225,218,238,219,426,360,386,382,421,305,302,297,292,290,283,283,275,265,29971,29972,29972,29973,29972,29971,29968,8,29983,8,8,8,8,8,29984,29984,29985,29986,29986,29987,29987,29988,29988,29989]} 1. e4 {[%emt 0:00:02]} e6 {[%emt 0:00:00]} 2. d4 {[%emt 0:00:02]} d5 {[%emt 0:00:01]} 3. Nd2 {[%emt 0:00:09]} dxe4 {[%emt 0:00:02]} 4. Nxe4 {[%emt 0:00:01]} Nd7 {[%emt 0:00:01]} 5. Bd3 {[%emt 0:00:21]} Ngf6 {[%emt 0:00:02]} 6. Bg5 {[%emt 0:00:09]} Be7 {[%emt 0:00:01]} 7. Nf3 {[%emt 0:00:38]} b6 {[%emt 0:00:10] C13: French: Classical System: 4 Bg5 Be7, Alekhine-Chatard Attack.} (7... Nxe4 $11 8. Bxe7 Qxe7 9. Bxe4 Nf6) 8. h4 {[%emt 0:00:07]} Bb7 {[%emt 0:00:02]} 9. Qe2 {[%emt 0:00:04]} h6 {[%emt 0:00:20] White has an edge.} 10. Bf4 {[%emt 0:00:15]} Nd5 {[%emt 0:01:21]} 11. Bd2 {[%emt 0:00:46]} Nb4 {[%emt 0:00:12]} ({Black should try} 11... c5 $11) 12. Bxb4 $14 {[%emt 0:00:29]} Bxb4+ {[%emt 0:00:02]} 13. c3 {[%emt 0:00:01] [#]} Bd6 $146 {[%emt 0:00:07]} ({Predecessor:} 13... Be7 14. O-O-O c6 15. Ne5 Nxe5 16. dxe5 Qc7 17. f4 O-O-O 18. h5 c5 19. Qg4 Rxd3 20. Rxd3 Bxe4 {½-½ (29) Hess,C (2206)-Schlaefer,R (1942) Leverkusen 2007}) 14. O-O-O {[%emt 0:00:14]} Qe7 {[%emt 0:00:33]} 15. Rhe1 {[%emt 0:00:14]} O-O-O {[%emt 0:00:04]} 16. Kb1 {[%emt 0:00:29]} Nf6 {[%emt 0:01:32][%cal Bd7f6,Bf6d5,Bd5f4][%mdl 32]} 17. Ng3 {[%emt 0:00:48]} (17. Nxd6+ cxd6 18. c4 Qd7 $11) 17... Nd5 {[%emt 0:00:39]} 18. Qc2 {[%emt 0:00:31]} (18. Ba6 $14) 18... Nf4 $11 {[%emt 0:01:46]} 19. Bf1 {[%emt 0:00:07]} (19. Nf5 Qf6 20. Nxd6+ cxd6 $17) 19... Kb8 {[%emt 0:01:33]} ({Black should play} 19... g5 $15) 20. Ne4 $1 $14 {[%emt 0:01:17]} Rhe8 {[%emt 0:00:18]} 21. g3 {[%emt 0:00:16]} Nd5 {[%emt 0:00:01]} 22. a3 {[%emt 0:00:14]} Nf6 {[%emt 0:00:02]} 23. Nfd2 {[%emt 0:00:13]} Nxe4 {[%emt 0:00:20]} 24. Nxe4 {[%emt 0:00:36]} Qd7 {[%emt 0:00:01]} 25. c4 {[%emt 0:00:23]} Bf8 {[%emt 0:00:10]} 26. Bh3 {[%emt 0:00:43][%cal Od4d5]} Qc6 {[%emt 0:00:11]} (26... f5 $5 {[%cal Rb7e4]} 27. Nc3 g6 $11) 27. Re3 {[%emt 0:00:27]} Be7 {[%emt 0:00:49]} 28. b4 {[%emt 0:00:16]} a6 {[%emt 0:00:02]} 29. Qb3 {[%emt 0:00:38]} g5 {[%emt 0:00:08]} 30. hxg5 {[%emt 0:00:01]} hxg5 {[%emt 0:00:00]} 31. Nc3 {[%emt 0:00:32]} Rh8 {[%emt 0:00:12]} 32. g4 {[%emt 0:00:16]} (32. d5 $15 exd5 33. Nxd5 (33. Rxe7 d4 $17)) 32... Bf6 {[%emt 0:00:13]} 33. Ne2 {[%emt 0:00:33]} (33. b5 $17 axb5 34. Nxb5) 33... Rh4 $19 {[%emt 0:00:22]} 34. Rg3 {[%emt 0:00:32]} Qe4+ {[%emt 0:00:09]} 35. Qc2 {[%emt 0:00:07] [#]} Rdh8 {[%emt 0:01:03]} (35... Bxd4 36. Bg2 Qxc2+ 37. Kxc2 Bxg2 38. Nxd4 Be4+ 39. Kc3 $17) (35... Be5 $1 $19 {[%mdl 512]} 36. Re3 (36. Rgd3 Qh7) 36... Qxc2+ 37. Kxc2 Bd6) 36. Bg2 $17 {[%emt 0:00:03]} Qxc2+ {[%emt 0:00:01]} 37. Kxc2 {[%emt 0:00:01]} Rh2 {[%emt 0:00:01]} (37... Bxg2 $17 38. Rxg2 Bg7) 38. Bxb7 $11 {[%emt 0:00:02]} Kxb7 39. Rf3 {[%emt 0:00:03]} R8h6 {[%emt 0:00:01]} 40. Ng3 {[%emt 0:00:10]} R6h4 $2 {[%emt 0:00:30][%mdl 8192]} 41. Rxf6 {[%emt 0:00:06]} Rxg4 {[%emt 0:00:01]} 42. Kd3 {[%emt 0:00:16]} Rf4 {[%emt 0:00:05]} 43. Rxf4 {[%emt 0:00:06]} gxf4 $18 {[%emt 0:00:01][%mdl 4096] Endgame KRN-KR} 44. Ne4 {[%emt 0:00:01]} Rh3+ {[%emt 0:00:02]} 45. Ke2 {[%emt 0:00:16]} Rxa3 {[%emt 0:00:02]} 46. Ng5 {[%emt 0:00:10]} Rb3 {[%emt 0:00:06]} 47. b5 {[%emt 0:00:07]} axb5 {[%emt 0:00:02]} 48. cxb5 {[%emt 0:00:00]} ({Much less strong is} 48. Nxf7 $6 f3+ 49. Kd2 bxc4 $16) 48... Rxb5 {[%emt 0:00:05]} 49. Nxf7 {[%emt 0:00:02] aiming for Nd8+.} Rb3 {[%emt 0:00:09]} 50. Ne5 {[%emt 0:00:01]} b5 $2 {[%emt 0:00:07]} (50... Rc3 51. Rd3 Rc2+ 52. Kf3 Kc8) 51. Rd3 {[%emt 0:00:01]} Rb2+ {[%emt 0:00:21]} 52. Kf3 {[%emt 0:00:01]} b4 {[%emt 0:00:01]} 53. Nc4 {[%emt 0:00:05]} Rc2 {[%emt 0:00:05]} 54. Nd2 {[%emt 0:00:06]} ({Not} 54. Ne5 Kb6 $16) 54... Kc6 {[%emt 0:00:10]} 55. Kxf4 {[%emt 0:00:00]} Kd5 {[%emt 0:00:08]} 56. Ke3 {[%emt 0:00:06]} Rc1 {[%emt 0:00:06]} 57. Rb3 {[%emt 0:00:11]} Rc3+ $2 {[%emt 0:00:08]} (57... c5 $18 58. dxc5 Kxc5) 58. Rxc3 {[%emt 0:00:02]} bxc3 {[%emt 0:00:01] KN-K3P} 59. Nb3 {[%emt 0:00:03]} Kc4 {[%emt 0:00:02]} 60. Nc1 {[%emt 0:00:04]} c2 {[%emt 0:00:01]} 61. f4 $2 {[%emt 0:00:12]} (61. Ne2 Kd5 62. Kd3 Kd6 63. Kxc2 Kd5 64. Kd3 Kd6 65. Ke4 Kc6 66. Ke5) 61... Kc3 $2 {[%emt 0:00:12][%mdl 8192] [#]} (61... c5 $11) 62. Ke4 $2 {[%emt 0:00:12]} (62. d5 {mates} exd5 63. f5 d4+ 64. Ke2 Kb2 65. Kd2 Ka3 66. f6 Kb4 67. f7) 62... Kd2 $11 {[%emt 0:00:03]} 63. Na2 {[%emt 0:00:01] Intending d5 and mate.} c6 {[%emt 0:00:05] Against d5} 64. Ke5 {[%emt 0:00:05]} Kd3 $2 {[%emt 0:00:02][%mdl 8192]} (64... Ke3 $11 65. Kxe6 Kxf4) 65. Kxe6 {[%emt 0:00:02] White mates.} Kxd4 {[%emt 0:00:01]} 66. f5 {[%emt 0:00:01][%cal Bf4f5,Bf5f6][%mdl 32]} Kc4 {[%emt 0:00:03]} 67. f6 {[%emt 0:00:01]} Kb3 {[%emt 0:00:00]} 68. Nc1+ {[%emt 0:00:01]} Kb2 {[%emt 0:00:01]} 69. Ne2 {[%emt 0:00:01] Weighted Error Value: White=0.19 (very precise) /Black=0.45} 1-0

[Event "5th Vera Menchik Memorial 2022"]
[Site "Prag"]
[Date "2022.06.05"]
[Round "3.16"]
[White "Richtrova, Eliska"]
[Black "Babicka, Michal"]
[Result "1-0"]
[ECO "B24"]
[WhiteElo "2204"]
[BlackElo "1989"]
[Annotator "TA"]
[PlyCount "47"]
[EventDate "2022.06.05"]
[EventType "tourn"]
[EventCountry "CZE"]
[SourceTitle "playchess.com"]
[Source "ChessBase"]
[SourceQuality "1"]
[TimeControl "720+3"]

{[%evp 12,47,18,13,51,50,41,33,54,50,75,83,72,75,89,91,82,64,79,48,45,51,50,32,31,49,19,29,17,14,46,56,360,352,367,362,1267,1251]} 1. e4 {[%emt 0:00:01]} c5 {[%emt 0:00:01]} 2. Nc3 {[%emt 0:00:01]} Nc6 {[%emt 0:00:15]} 3. g3 {[%emt 0:00:03]} g6 {[%emt 0:00:01]} 4. Bg2 {[%emt 0:00:01]} Bg7 {[%emt 0:00:02]} 5. d3 {[%emt 0:00:01]} e6 {[%emt 0:00:07]} 6. Be3 {[%emt 0:00:03]} b6 {[%emt 0:00:01]} 7. Qd2 {[%emt 0:00:03]} h6 {[%emt 0:00:04] B24: Closed Sicilian: 3 g3 sidelines.} 8. Nge2 {[%emt 0:00:29]} Nge7 {[%emt 0:00:03]} 9. O-O {[%emt 0:00:05]} Bb7 {[%emt 0:00:03] White is slightly better.} 10. d4 {[%emt 0:00:12]} cxd4 {[%emt 0:00:10]} 11. Nxd4 {[%emt 0:00:01] [#]} Nxd4 $146 {[%emt 0:00:05]} ({Predecessor:} 11... a6 12. Rad1 Ne5 13. Qe2 Rc8 14. Bc1 O-O 15. f4 N5c6 16. Be3 Qc7 17. Nxc6 dxc6 {1-0 (27) Vykydal,F (2240)-Denk,A (2259) Austria 2007}) 12. Bxd4 {[%emt 0:00:02]} O-O {[%emt 0:00:04]} 13. Bxg7 {[%emt 0:01:19] White is more active.} Kxg7 {[%emt 0:00:02]} 14. Rad1 {[%emt 0:00:26]} Bc6 {[%emt 0:00:32]} 15. e5 {[%emt 0:01:22]} Qc7 {[%emt 0:01:19]} 16. Qf4 {[%emt 0:00:50]} Nf5 {[%emt 0:00:11]} 17. Bxc6 {[%emt 0:00:20]} dxc6 {[%emt 0:00:10]} 18. Ne4 {[%emt 0:01:00][%cal Bc3e4,Be4g5,Bg5e6][%mdl 32]} g5 {[%emt 0:00:19]} 19. Qg4 {[%emt 0:01:54] Hoping for Rde1.} Qxe5 {[%emt 0:00:13]} 20. h4 {[%emt 0:00:21]} Ne7 {[%emt 0:04:13]} ({Don't do} 20... Qxb2 21. hxg5 h5 22. Qf4 $16 (22. Qxh5 Qe5 $16)) (20... Nd4 $5 {[%cal Rf7f5]} 21. Nxg5 (21. hxg5 $2 h5 $19) 21... Ne2+ 22. Kh2 hxg5 $11) 21. hxg5 {[%emt 0:00:06] [#] Threatens to win with Rd7.} hxg5 $2 {[%emt 0:00:03][%mdl 8192]} ({Black should try} 21... Qf5 $14 22. gxh6+ Kxh6 23. Qxf5 (23. Qh4+ Kg7 $14) 23... Nxf5) 22. Nxg5 $18 {[%emt 0:00:22] And now Nf3+ would win.} Ng6 {[%emt 0:00:07]} 23. Rd7 {[%emt 0:00:23] aiming for f4.} ({Not} 23. Qh5 Rh8 24. Qg4 Rad8 $11) 23... Rad8 $2 {[%emt 0:00:13]} (23... Kg8 24. Nxf7 Rxf7 25. Qxg6+ Qg7 26. Qxe6 Raf8 27. Rxa7 Qxb2 28. Rxf7 Rxf7 29. Qxc6 Kg7) 24. Nxe6+ {[%emt 0:03:50] Weighted Error Value: White=0.06 (flawless) /Black=0.46} 1-0

[Event "5th Vera Menchik Memorial 2022"]
[Site "Prag"]
[Date "2022.06.05"]
[Round "4.2"]
[White "Pulpan, Jakub"]
[Black "Akerman, Jan"]
[Result "1-0"]
[ECO "C56"]
[WhiteElo "2418"]
[BlackElo "1524"]
[Annotator "TA"]
[PlyCount "33"]
[EventDate "2022.06.05"]
[EventType "tourn"]
[EventCountry "CZE"]
[SourceTitle "playchess.com"]
[Source "ChessBase"]
[SourceQuality "1"]
[TimeControl "720+3"]

{[%evp 13,33,119,125,21,284,240,281,238,211,154,237,213,230,127,316,143,130,0,984,950,2337,2291]} 1. e4 {[%emt 0:00:01]} e5 {[%emt 0:00:01]} 2. Nf3 {[%emt 0:00:01]} Nc6 {[%emt 0:00:00]} 3. Bc4 {[%emt 0:00:04]} Bc5 {[%emt 0:00:01]} 4. c3 {[%emt 0:00:01]} Nf6 {[%emt 0:00:02]} 5. d4 {[%emt 0:00:01]} exd4 {[%emt 0:00:02]} 6. O-O {[%emt 0:00:01]} O-O {[%emt 0:00:02]} 7. cxd4 {[%emt 0:00:02]} Bb6 {[%emt 0:00:02] [#]} 8. e5 {[%emt 0:00:02] White is more active. C56: Two Knights: 4 d4 exd4 5 0-0 Nxe4.} (8. d5 $1 $16 {[%cal Rd5c6]}) 8... Ne8 $2 {[%emt 0:00:04][%mdl 8192]} (8... d5 $11) 9. d5 {[%emt 0:00:08]} Nb8 {[%emt 0:00:03] [#]} 10. Nc3 $146 {[%emt 0:00:08] Black must now prevent d6. White has a decisive advantage.} ({Predecessor:} 10. Bg5 f6 11. d6+ Kh8 12. exf6 Nxf6 13. Nc3 cxd6 14. Nd5 Bc7 15. Rc1 Nc6 16. a3 {1-0 (29) Pinheiro,J (1764)-Lima Miranda,C Fortaleza 2018}) 10... h6 {[%emt 0:00:01]} 11. e6 {[%emt 0:00:41]} d6 {[%emt 0:00:21] Prevents Ne5.} (11... dxe6 $16 {was worth a try.} 12. dxe6 Nd6 13. exf7+ Kh8) 12. Re1 $18 {[%emt 0:00:05]} Qe7 {[%emt 0:00:14]} 13. Ne4 {[%emt 0:00:08]} (13. Qc2 $18) 13... Nf6 $2 {[%emt 0:00:45] [#]} (13... fxe6 $16 14. a4 c6) 14. Ng3 {[%emt 0:00:05]} (14. Nh4 $18 {and White stays clearly on top. Nf5 is the strong threat.} Nxe4 15. Rxe4) 14... fxe6 {[%emt 0:00:29]} 15. dxe6 {[%emt 0:00:58]} (15. Nf5 $1 $16 {[%cal Rf5e7]} Bxf2+ 16. Kxf2 Ng4+ 17. Kg3 Rxf5 18. Kxg4) 15... Re8 {[%emt 0:01:42][%mdl 8192]} (15... Ng4 $11 16. Re2 Nc6) 16. Nf5 {[%emt 0:00:05]} Qd8 {[%emt 0:00:04]} 17. e7+ {[%emt 0:00:01] Weighted Error Value: White=0.83/Black=0.86} 1-0

[Event "5th Vera Menchik Memorial 2022"]
[Site "Prag"]
[Date "2022.06.05"]
[Round "4.3"]
[White "Kraus, Petr"]
[Black "Jirovsky, Milos"]
[Result "0-1"]
[ECO "B40"]
[WhiteElo "1804"]
[BlackElo "2458"]
[Annotator "TA"]
[PlyCount "58"]
[EventDate "2022.06.05"]
[EventType "tourn"]
[EventCountry "CZE"]
[SourceTitle "playchess.com"]
[Source "ChessBase"]
[SourceQuality "1"]
[TimeControl "720+3"]

{[%evp 9,58,4,57,-13,-12,-37,-31,-31,-29,-43,-24,-40,-13,-21,-20,-49,-41,-99,-106,-120,-112,-110,-106,-110,-104,-158,-127,-131,-116,-102,-100,-525,-526,-607,-535,-793,-812,-796,-742,-735,-732,-727,-728,-748,-741,-769,-785,-812,-807,-1487,-1407]} 1. c4 {[%emt 0:00:02]} e6 {[%emt 0:00:01]} 2. e4 {[%emt 0:00:05]} c5 {[%emt 0:00:04]} 3. Nc3 {[%emt 0:00:02]} Nc6 {[%emt 0:00:01]} 4. Nf3 {[%emt 0:00:04]} d6 {[%emt 0:00:16]} 5. Be2 {[%emt 0:00:24]} g6 {[%emt 0:00:02]} ({Black should play} 5... Nd4 $11) 6. O-O {[%emt 0:00:03] B40: Sicilian: 2...e6, Unusual lines.} (6. d4 $14) 6... Bg7 $11 {[%emt 0:00:01]} 7. Qc2 {[%emt 0:00:03]} Nge7 {[%emt 0:00:01]} 8. d3 {[%emt 0:00:14] Black is slightly better.} O-O {[%emt 0:00:04] [#]} 9. Bd2 $146 {[%emt 0:00:18]} ({Predecessor:} 9. Bg5 a6 10. Rad1 Rb8 11. Be3 b5 12. d4 b4 13. Na4 cxd4 14. Nxd4 Nxd4 15. Bxd4 Bxd4 16. Rxd4 {0-1 (30) Blume,B-Schwellnus,G freechess.de 2021}) 9... a6 {[%emt 0:00:03][%cal Ba7a6,Ba6b5,Bb5b4][%mdl 32]} 10. Qc1 {[%emt 0:00:02]} Re8 {[%emt 0:00:02]} 11. Re1 {[%emt 0:00:18]} Rb8 {[%emt 0:00:03]} 12. b3 {[%emt 0:00:08]} b5 {[%emt 0:00:02]} 13. cxb5 {[%emt 0:00:15]} (13. Bh6 $15) 13... axb5 $17 {[%emt 0:00:01]} 14. Rb1 {[%emt 0:00:21]} b4 {[%emt 0:00:35]} 15. Na4 {[%emt 0:00:17]} Ba6 {[%emt 0:00:04]} 16. a3 {[%emt 0:00:19]} Qd7 {[%emt 0:00:26]} 17. Be3 {[%emt 0:00:39]} (17. Bh6 $142) 17... Rec8 {[%emt 0:00:08]} 18. axb4 {[%emt 0:00:20]} Rxb4 {[%emt 0:00:15]} 19. Qd2 {[%emt 0:01:00]} Rcb8 {[%emt 0:00:13]} 20. Bd1 $2 {[%emt 0:00:20][%mdl 8192] [#] Loses the game.} (20. Qa2 $17) 20... Rxa4 $19 {[%emt 0:00:24] Black is clearly winning.} 21. Qc2 {[%emt 0:00:36]} Rab4 {[%emt 0:00:03]} 22. Qa2 {[%emt 0:00:11]} Bxd3 {[%emt 0:00:05]} 23. Bc2 {[%emt 0:00:20]} Bxc2 {[%emt 0:00:07]} 24. Qxc2 {[%emt 0:00:05]} Nd4 {[%emt 0:00:03]} 25. Nxd4 {[%emt 0:00:11]} Bxd4 {[%emt 0:00:02]} 26. Bxd4 {[%emt 0:00:11]} Rxd4 {[%emt 0:00:01]} 27. Red1 {[%emt 0:00:18]} Nc6 {[%emt 0:00:02]} 28. f3 {[%emt 0:00:07]} Qb7 {[%emt 0:00:06]} 29. Rd3 {[%emt 0:00:14]} Nb4 {[%emt 0:00:02][%csl LRc2,LRd3] Weighted Error Value: White=0.79/Black=0.16 (very precise)} 0-1

[Event "5th Vera Menchik Memorial 2022"]
[Site "Prag"]
[Date "2022.06.05"]
[Round "4.5"]
[White "Neuman, Petr"]
[Black "Taborska, Aneta"]
[Result "1-0"]
[ECO "E91"]
[WhiteElo "2389"]
[BlackElo "1339"]
[Annotator "TA"]
[PlyCount "61"]
[EventDate "2022.06.05"]
[EventType "tourn"]
[EventCountry "CZE"]
[SourceTitle "playchess.com"]
[Source "ChessBase"]
[SourceQuality "1"]
[TimeControl "720+3"]

{[%evp 14,61,52,47,52,47,49,47,33,41,98,103,107,107,116,97,108,100,250,147,150,150,153,137,143,136,136,138,139,140,145,145,200,209,213,203,190,181,318,326,401,403,398,379,889,908,29978,29972,29992,29992]} 1. d4 {[%emt 0:00:01]} Nf6 {[%emt 0:00:04]} 2. c4 {[%emt 0:00:01]} g6 {[%emt 0:00:01]} 3. Nc3 {[%emt 0:00:01]} c5 {[%emt 0:00:08]} 4. d5 {[%emt 0:00:02]} Bg7 {[%emt 0:00:03]} 5. e4 {[%emt 0:00:01]} O-O {[%emt 0:00:14]} 6. Nf3 {[%emt 0:00:07]} d6 {[%emt 0:00:03]} 7. Bg5 {[%emt 0:00:05]} Bg4 {[%emt 0:00:17] 7...e6 is setting a new trend.} 8. Be2 {[%emt 0:00:02]} Re8 {[%emt 0:00:49] E91: King's Indian: Classical: 6 Be2, unusual replies including 6...c5 and 6...Bg4.} 9. O-O {[%emt 0:00:14]} Nbd7 {[%emt 0:00:09]} 10. h3 {[%emt 0:00:04]} Bxf3 {[%emt 0:00:09] White is slightly better.} 11. Bxf3 {[%emt 0:00:02] [#]} Ne5 $146 {[%emt 0:00:17]} (11... a6 $14) ({Predecessor:} 11... Qb6 12. Qc2 a6 13. Be2 e6 14. Rfe1 exd5 15. exd5 Re7 16. a3 Rae8 17. Be3 Ne4 18. Nxe4 Rxe4 {1-0 (68) Krena,B (1979)-Hajek,O (1791) Brno 2012}) 12. Be2 $16 {[%emt 0:00:01]} Ned7 {[%emt 0:00:43]} 13. f4 {[%emt 0:00:16]} a6 {[%emt 0:00:44]} 14. a4 {[%emt 0:00:04][%cal Ba2a4,Ba4a5][%mdl 32]} Qb6 {[%emt 0:01:18]} 15. Qc2 {[%emt 0:00:17]} e6 {[%emt 0:01:16] Black cannot hold the game after this.} (15... Rab8 $16 {was worth a try.}) 16. dxe6 {[%emt 0:00:08]} ({Better is} 16. e5 $1 $18 {[%cal Re5f6]}) 16... Rxe6 {[%emt 0:00:17]} 17. Bf3 {[%emt 0:00:03]} Rae8 {[%emt 0:00:41]} 18. a5 {[%emt 0:00:03]} Qc7 {[%emt 0:00:14]} 19. Kh1 {[%emt 0:00:19]} h6 {[%emt 0:00:58]} 20. Bh4 {[%emt 0:00:01]} Kh7 {[%emt 0:00:50]} 21. Nd5 {[%emt 0:00:14]} Qb8 {[%emt 0:00:30]} 22. Rad1 {[%emt 0:00:14] White is more active.} Nxe4 {[%emt 0:00:26] [#]} (22... Rf8 $16 23. Nc3 b6 24. axb6 Qxb6) 23. f5 $1 $18 {[%emt 0:00:09]} gxf5 {[%emt 0:00:34]} 24. Bxe4 {[%emt 0:00:02]} Rxe4 {[%emt 0:00:16]} 25. Rxf5 {[%emt 0:00:08]} Kg8 {[%emt 0:00:24] [#]} (25... Kh8 $142) 26. Qf2 $1 {[%emt 0:00:43]} Ne5 {[%emt 0:00:49]} 27. Bf6 {[%emt 0:00:35] Black must now prevent Rf1.} Re6 {[%emt 0:00:47]} 28. Rf1 {[%emt 0:00:23] Bxg7 is the strong threat.} ({Less strong is} 28. Qg3 Qf8 $18) 28... Nd3 $2 {[%emt 0:00:15]} (28... Bxf6 29. Rxf6 Ng4 30. hxg4 $18) (28... Rxf6 29. Nxf6+ Bxf6) 29. Qg3 {[%emt 0:00:05][%csl Gf6,LRd3,LRg7][%cal Rg3g7]} Rxf6 {[%emt 0:00:05]} 30. Nxf6+ {[%emt 0:00:02]} Kf8 {[%emt 0:00:03]} 31. Nxe4 {[%emt 0:00:06] Weighted Error Value: White=0.05 (flawless) /Black=0.54} 1-0

[Event "5th Vera Menchik Memorial 2022"]
[Site "Prag"]
[Date "2022.06.05"]
[Round "4.6"]
[White "Filindash, Nikita"]
[Black "Varga, David"]
[Result "1/2-1/2"]
[ECO "D35"]
[WhiteElo "1404"]
[BlackElo "2323"]
[Annotator "TA"]
[PlyCount "92"]
[EventDate "2022.06.05"]
[EventType "tourn"]
[EventCountry "CZE"]
[SourceTitle "playchess.com"]
[Source "ChessBase"]
[SourceQuality "1"]
[TimeControl "720+3"]

{[%evp 13,92,11,21,16,21,0,68,-35,-46,-31,-46,-67,-29,-39,-29,-47,-5,-25,-20,-5,0,-19,-14,-15,9,0,77,48,68,-18,-19,-18,-16,-20,-22,-19,-12,-27,-17,-16,-20,-18,-17,-29,0,0,20,0,12,0,26,10,15,0,-2,-18,-12,-39,-38,-62,-65,-74,-74,-75,-8,-12,0,0,0,0,0,-42,-42,-42,-42,-42,0,-42,-42,-64,-42]} 1. d4 {[%emt 0:00:02]} Nf6 {[%emt 0:00:01]} 2. c4 {[%emt 0:00:01]} e6 {[%emt 0:00:02]} 3. Nc3 {[%emt 0:00:01]} d5 {[%emt 0:00:08]} 4. cxd5 {[%emt 0:00:02]} exd5 {[%emt 0:00:01]} 5. Bg5 {[%emt 0:00:02]} Be7 {[%emt 0:00:14]} 6. e3 {[%emt 0:00:02]} O-O {[%emt 0:00:26]} 7. Bd3 {[%emt 0:00:03]} Re8 {[%emt 0:00:30]} 8. Nf3 {[%emt 0:01:59] D35: Queen's Gambit Declined: Exchange Variation.} Bg4 {[%emt 0:00:22] 8...h6 is a critical line.} 9. Qb3 {[%emt 0:00:50] [#]} (9. h3 $5 {[%cal Rh3g4]} Bxf3 10. Qxf3 $14) 9... Nc6 $146 {[%emt 0:01:23]} (9... Nbd7 $11) ({Predecessor:} 9... Nbd7 10. Qxb7 c5 11. Ne5 cxd4 12. Bxf6 Bxf6 13. Nxg4 dxc3 14. Nxf6+ Nxf6 15. bxc3 Qa5 {1-0 (44) De Pinho,J-Nunes,J Portugal 1996}) 10. Ne5 {[%emt 0:02:54] White is more active.} ({Reject} 10. Qxb7 Nb4 11. Bb1 Rb8 12. Qxa7 Ra8 $11) (10. Bxf6 $14 Bxf6 11. O-O) 10... Nxe5 $15 {[%emt 0:02:43]} 11. dxe5 {[%emt 0:00:01]} Nd7 {[%emt 0:00:02][%csl LRe5,LRg5]} 12. Bxe7 {[%emt 0:00:15]} Qxe7 {[%emt 0:00:12]} 13. O-O {[%emt 0:02:16]} Nc5 {[%emt 0:02:14]} 14. Qc2 {[%emt 0:00:15]} Qxe5 {[%emt 0:00:19]} 15. Bxh7+ {[%emt 0:00:31]} Kh8 {[%emt 0:00:01] And now ...g6 would win.} 16. h3 {[%emt 0:00:06]} Bd7 {[%emt 0:01:32] Strongly threatening ...g6.} 17. Rad1 {[%emt 0:00:22]} c6 {[%emt 0:00:41] Black wants to play ...g6.} 18. Bd3 {[%emt 0:00:52]} Re6 {[%emt 0:00:22]} 19. Bf5 {[%emt 0:00:09]} Rh6 {[%emt 0:00:29]} (19... Re7 $11 20. Bxd7 Nxd7) 20. Bxd7 $16 {[%emt 0:00:02]} Nxd7 {[%emt 0:00:01]} 21. Qe2 {[%emt 0:00:05]} (21. e4 $1 $14) 21... Re8 $11 {[%emt 0:00:21]} 22. Rd4 {[%emt 0:00:05] [#]} Qxd4 $1 {[%emt 0:00:07]} 23. exd4 {[%emt 0:00:01]} Rxe2 {[%emt 0:00:01]} 24. Nxe2 {[%emt 0:00:02][%mdl 4096] Endgame KRN-KRN} Re6 {[%emt 0:00:03]} 25. Nc3 {[%emt 0:00:14]} Kg8 {[%emt 0:00:17]} 26. Rd1 {[%emt 0:00:04]} Kf8 {[%emt 0:00:01]} 27. Kf1 {[%emt 0:00:01]} Ke7 {[%emt 0:00:03]} 28. f3 {[%emt 0:00:15]} Kd6 {[%emt 0:00:01]} 29. Kf2 {[%emt 0:00:04]} b5 {[%emt 0:00:04]} 30. b3 {[%emt 0:00:20]} a5 {[%emt 0:00:01]} 31. g3 {[%emt 0:00:15]} Nb8 {[%emt 0:00:07]} 32. Ne2 {[%emt 0:00:07]} Na6 {[%emt 0:00:08]} 33. a3 {[%emt 0:00:04]} Re8 {[%emt 0:00:11]} 34. Nf4 {[%emt 0:00:11]} Nc7 {[%emt 0:00:12]} 35. Nd3 {[%emt 0:00:09]} Ne6 {[%emt 0:00:02]} 36. Ne5 {[%emt 0:00:36]} f6 {[%emt 0:00:15]} 37. Ng4 {[%emt 0:00:07]} a4 {[%emt 0:00:01]} 38. b4 {[%emt 0:00:10] [#]} Nc7 {[%emt 0:00:07]} (38... f5 $1 $17 {[%cal Rf5g4]} 39. Ne3 f4 40. gxf4 Nxf4) 39. Ne3 {[%emt 0:00:02] Nf5+ is the strong threat.} g6 {[%emt 0:00:03] Inhibits Nf5+.} 40. Ng4 {[%emt 0:00:02]} Re6 {[%emt 0:00:07]} 41. Ne3 {[%emt 0:00:04]} Na8 {[%emt 0:00:01]} 42. Ng4 {[%emt 0:00:03]} Nb6 {[%emt 0:00:01]} 43. Rd3 {[%emt 0:00:04]} Nc4 {[%emt 0:00:01]} 44. Ne3 {[%emt 0:00:04]} Nb6 {[%emt 0:00:06]} 45. Rc3 {[%emt 0:00:05]} Re8 {[%emt 0:00:05]} 46. Rd3 {[%emt 0:00:01]} Re7 {[%emt 0:00:02] Weighted Error Value: White=0.18 (very precise) /Black=0.17 (very precise)} 1/2-1/2